bitfinex/quotes_ETHUSD_20250628
["timestamp","ask_amount","ask_price","bid_price","bid_amount"]
[1751101735041,61.06454082,2423.1,2422.8,0.001]
[1751101749096,75.31654082,2423.1,2422.8,0.001]
[1751101749258,70.97454082,2423.1,2422.8,0.001]
[1751101749589,40.97454082,2423.1,2422.8,0.001]
[1751101749790,70.97454082,2423.1,2422.8,0.001]
[1751101750490,71.74314082,2423.1,2422.8,0.001]
[1751101754440,71.74314082,2423.1,2423.0,0.00014897]
[1751101756809,41.74314082,2423.1,2423.0,0.00014897]
[1751101757013,71.74314082,2423.1,2423.0,0.00014897]
[1751101757209,72.67054082,2423.1,2423.0,0.00014897]
[1751101758641,70.22216171,2423.1,2423.0,0.00014897]
[1751101758979,40.22216171,2423.1,2423.0,0.00014897]
[1751101759181,70.22216171,2423.1,2423.0,0.00014897]
[1751101759910,70.22016171,2423.1,2423.0,0.00014897]
[1751101760508,69.67016171,2423.1,2423.0,0.00014897]
[1751101760721,72.1235548,2423.1,2423.0,0.00014897]
[1751101763741,42.38616689,2423.1,2423.0,0.00014897]
[1751101764033,60.74116689,2423.1,2423.0,0.00014897]
[1751101764803,61.54116689,2423.1,2423.0,0.00014897]
[1751101766526,13.27616689,2423.1,2423.0,0.76054897]
[1751101766707,4.97816689,2423.1,2423.0,0.76054897]
[1751101767054,21.83676689,2423.1,2423.0,0.76054897]
[1751101768522,21.83776689,2423.1,2423.0,0.76054897]
[1751101770970,13.48176689,2423.1,2423.0,0.76054897]
[1751101771175,21.83176689,2423.1,2423.0,0.76054897]
[1751101771869,21.83076689,2423.1,2423.0,0.76054897]
[1751101773954,13.48176689,2423.1,2423.0,0.76054897]
[1751101774155,21.82976689,2423.1,2423.0,0.76054897]
[1751101774877,13.48176689,2423.1,2423.0,0.76054897]
[1751101775030,21.82976689,2423.1,2423.0,0.76054897]
[1751101776167,13.48176689,2423.1,2423.0,0.76054897]
[1751101776347,21.82976689,2423.1,2423.0,0.76054897]
[1751101777710,21.82876689,2423.1,2423.0,0.76054897]
[1751101780684,22.71391344,2423.1,2423.0,0.00014897]
[1751101781821,21.82876689,2423.1,2423.0,0.00014897]
[1751101790421,31.73676689,2423.1,2423.0,0.00014897]
[1751101802632,37.46348501,2423.1,2423.0,0.00014897]
[1751101803233,38.79408501,2423.1,2423.0,0.00014897]
[1751101805034,30.44708501,2423.1,2423.0,0.00014897]
[1751101805203,41.30080035,2423.1,2423.0,0.00014897]
[1751101806232,32.40880035,2423.1,2423.0,0.00014897]
[1751101806432,40.75180035,2423.1,2423.0,0.00014897]
[1751101806730,35.02508223,2423.1,2423.0,0.00014897]
[1751101806939,26.68208223,2423.1,2423.0,0.00014897]
[1751101807133,35.02508223,2423.1,2423.0,0.00014897]
[1751101808343,43.20414906,2423.1,2423.0,0.00014897]
[1751101812636,43.20514906,2423.1,2423.0,0.00014897]
[1751101813625,34.86114906,2423.1,2423.0,0.00014897]
[1751101813824,43.20414906,2423.1,2423.0,0.00014897]
[1751101814644,43.95544906,2423.1,2423.0,0.00014897]
[1751101815150,35.77638223,2423.1,2423.0,0.00014897]
[1751101815353,43.95544906,2423.1,2423.0,0.00014897]
[1751101815558,43.20414906,2423.1,2423.0,0.00014897]
[1751101816220,73.75414906,2423.1,2423.0,0.00014897]
[1751101816557,75.02514116,2423.1,2423.0,0.00014897]
[1751101816859,74.50544906,2423.1,2423.0,0.00014897]
[1751101818133,44.50544906,2423.1,2423.0,0.00014897]
[1751101818818,43.75414906,2423.1,2423.0,0.00014897]
[1751101819021,43.20414906,2423.1,2423.0,0.00014897]
[1751101827778,43.20214906,2423.1,2423.0,0.00014897]
[1751101829895,26.68208223,2423.1,2423.0,0.00014897]
[1751101830099,31.73076689,2423.1,2423.0,0.00014897]
[1751101833105,31.72776689,2423.1,2423.0,0.00014897]
[1751101834298,23.38976689,2423.1,2423.0,0.00014897]
[1751101834591,31.72876689,2423.1,2423.0,0.00014897]
[1751101834761,39.90783372,2423.1,2423.0,0.00014897]
[1751101834958,43.92115796,2423.1,2423.0,0.00014897]
[1751101854646,41.46796027,2423.1,2423.0,0.00014897]
[1751101865933,33.12896027,2423.1,2423.0,0.00014897]
[1751101866140,41.45596027,2423.1,2423.0,0.00014897]
[1751101867376,13.38976689,2423.1,2423.0,0.00014897]
[1751101867552,10.9136,2423.1,2423.0,0.81544897]
[1751101867872,31.71676689,2423.1,2423.0,0.81544897]
[1751101882827,39.68755019,2423.1,2423.0,0.00014897]
[1751101883125,43.70087443,2423.1,2423.0,0.00014897]
[1751101896598,41.25072592,2423.1,2423.0,0.00014897]
[1751101910736,37.23740168,2423.1,2423.0,0.00014897]
[1751101917469,31.51216689,2423.1,2423.0,0.00014897]
[1751101917965,37.23840168,2423.1,2423.0,0.00014897]
[1751101920155,27.33040168,2423.1,2423.0,0.00014897]
[1751101921331,28.13770168,2423.1,2423.0,0.00014897]
[1751101921575,31.19907952,2423.1,2423.0,0.00014897]
[1751101931878,21.59916689,2423.1,2423.0,0.00014897]
[1751101936584,29.77931078,2423.1,2423.0,0.00014897]
[1751101942288,59.77931078,2423.1,2423.0,0.00014897]
[1751101942501,64.12131078,2423.1,2423.0,0.00014897]
[1751101942798,59.77931078,2423.1,2423.0,0.00014897]
[1751101943002,63.79263502,2423.1,2423.0,0.00014897]
[1751101946086,33.79263502,2423.1,2423.0,0.00014897]
[1751101946515,63.79263502,2423.1,2423.0,0.00014897]
[1751101947304,33.79263502,2423.1,2423.0,0.00014897]
[1751101947515,63.79263502,2423.1,2423.0,0.00014897]
[1751101952532,13.27616689,2423.1,2423.0,0.77944897]
[1751101952716,21.59916689,2423.1,2423.0,0.00014897]
[1751101955207,29.77931078,2423.1,2423.0,0.00014897]
[1751101958690,27.32509369,2423.1,2423.0,0.00014897]
[1751101971328,12.47637129,2422.9,2422.8,0.001]
[1751101971553,19.31597129,2422.9,2422.8,0.001]
[1751101972053,21.00297129,2422.9,2422.8,0.001]
[1751101975847,21.00297129,2422.9,2422.8,0.795]
[1751101978631,20.79737129,2422.9,2422.8,0.795]
[1751102002655,20.79637129,2422.9,2422.8,0.795]
[1751102005089,12.47637129,2422.9,2422.8,0.795]
[1751102005280,20.79637129,2422.9,2422.8,0.795]
[1751102006553,1.44055103,2423.0,2422.8,0.795]
[1751102006756,5.60387383,2423.0,2422.8,1.0006]
[1751102006988,5.60387383,2423.0,2422.9,0.7827]
[1751102006989,15.60387383,2423.0,2422.9,0.7827]
[1751102015609,12.47637129,2422.9,2422.8,0.001]
[1751102015902,12.68197129,2422.9,2422.8,0.001]
[1751102016100,18.40789809,2422.9,2422.8,0.001]
[1751102017541,19.18539809,2422.9,2422.8,0.001]
[1751102017709,22.53792928,2422.9,2422.8,0.001]
[1751102018702,16.81200248,2422.9,2422.8,0.001]
[1751102023806,16.03450248,2422.9,2422.8,0.001]
[1751102048374,16.83450248,2422.9,2422.8,0.001]
[1751102052540,18.52050248,2422.9,2422.8,0.001]
[1751102055880,1.43955103,2422.8,2422.4,1.0193]
[1751102056067,2.47678018,2422.5,2422.4,1.0193]
[1751102056270,12.47678018,2422.5,2422.4,1.0193]
[1751102062396,10.0,2422.5,2422.4,1.0193]
[1751102062694,12.47678018,2422.5,2422.4,1.0193]
[1751102068305,19.10962564,2422.7,2422.4,1.94152438]
[1751102069392,19.10862564,2422.7,2422.4,1.94152438]
[1751102071207,2.47669468,2422.6,2422.4,1.94152438]
[1751102071410,2.47669468,2422.6,2422.4,1.0193]
[1751102075010,12.47662677,2422.7,2422.4,1.0193]
[1751102080712,2.47662677,2422.7,2422.4,1.0193]
[1751102080880,12.47662677,2422.7,2422.4,1.0193]
[1751102084118,2.47674446,2422.6,2422.4,1.0193]
[1751102084823,2.47668375,2422.6,2422.4,1.0193]
[1751102086521,16.48041186,2422.7,2422.4,0.2064]
[1751102086821,2.47678018,2422.5,2422.4,0.2064]
[1751102088186,9.1087569,2422.6,2422.4,0.2064]
[1751102088823,2.47678018,2422.5,2422.4,0.2064]
[1751102089532,9.10873008,2422.6,2422.4,0.2064]
[1751102090002,2.47678018,2422.5,2422.4,0.2064]
[1751102105745,4.16273292,2422.6,2422.4,0.2064]
[1751102106049,10.79373292,2422.6,2422.4,0.2064]
[1751102106220,4.16273292,2422.6,2422.4,0.2064]
[1751102106519,10.79373292,2422.6,2422.4,0.2064]
[1751102109655,2.47673292,2422.6,2422.4,0.2064]
[1751102109816,10.79273292,2422.6,2422.4,0.2064]
[1751102116557,8.316,2422.6,2422.4,0.2064]
[1751102117253,10.79269167,2422.6,2422.4,0.2064]
[1751102117655,12.47660429,2422.7,2422.4,0.2064]
[1751102117951,20.79260429,2422.7,2422.4,1.0303]
[1751102119871,10.0,2422.7,2422.4,6.64924047]
[1751102120176,10.0,2422.7,2422.6,0.2056]
[1751102120871,19.75555103,2422.8,2422.6,0.2056]
[1751102122772,13.12455103,2422.8,2422.6,0.2056]
[1751102123882,11.43955103,2422.8,2422.6,0.2056]
[1751102124181,22.23203416,2422.8,2422.6,0.2056]
[1751102125174,19.75455103,2422.8,2422.6,0.2056]
[1751102128052,22.23104017,2422.8,2422.6,0.2056]
[1751102128250,19.75455103,2422.8,2422.6,0.2056]
[1751102129587,22.23102777,2422.8,2422.6,0.2056]
[1751102130080,13.91602777,2422.8,2422.6,0.2056]
[1751102130287,10.0,2422.7,2422.6,0.2056]
[1751102130482,1.43955103,2422.8,2422.6,0.2056]
[1751102130945,10.0,2422.7,2422.6,0.2056]
[1751102131690,1.43955103,2422.8,2422.6,0.2056]
[1751102131994,10.0,2422.7,2422.6,0.2056]
[1751102133858,1.43955103,2422.8,2422.6,0.2056]
[1751102134091,10.0,2422.7,2422.6,0.2056]
[1751102134395,1.43955103,2422.8,2422.6,0.2056]
[1751102134692,1.43955103,2422.8,2422.6,1.22196672]
[1751102144220,3.91612322,2422.8,2422.6,1.22196672]
[1751102144388,1.43955103,2422.8,2422.6,1.22196672]
[1751102159416,1.43955103,2422.8,2422.6,0.2056]
[1751102168734,3.91603513,2422.8,2422.6,0.2056]
[1751102173941,2.47667794,2422.6,2422.5,4.748]
[1751102174105,2.47667794,2422.6,2422.5,4.9536]
[1751102175139,2.47698722,2422.3,2422.0,12.1361]
[1751102175336,2.47698722,2422.3,2422.0,7.3881]
[1751102175503,2.47698722,2422.3,2422.2,0.2064]
[1751102177435,4.16098722,2422.3,2422.2,0.2064]
[1751102191112,2.47715115,2422.2,2422.0,0.001]
[1751102191307,2.47715115,2422.2,2422.1,0.2064]
[1751102228202,2.47718921,2422.1,2422.0,0.001]
[1751102229648,4.16118921,2422.1,2422.0,0.001]
[1751102231793,4.97278921,2422.1,2422.0,0.001]
[1751102231952,4.97278921,2422.1,2421.7,0.0635721]
[1751102231953,13.83909607,2421.8,2421.7,0.0635721]
[1751102232157,21.65209607,2421.8,2421.7,0.0635721]
[1751102233097,27.37800793,2421.8,2421.7,0.0635721]
[1751102233398,23.02833217,2421.8,2421.7,0.0635721]
[1751102233557,31.41933217,2421.8,2421.7,0.0635721]
[1751102236658,33.88247594,2421.8,2421.7,0.0635721]
[1751102240906,34.38247594,2421.8,2421.7,0.0635721]
[1751102244221,34.37847594,2421.8,2421.7,0.0635721]
[1751102244420,26.18942031,2421.8,2421.7,0.0635721]
[1751102247420,25.37782031,2421.8,2421.7,0.0635721]
[1751102251724,25.37482031,2421.8,2421.7,0.0635721]
[1751102252226,21.56789607,2421.8,2421.7,0.0635721]
[1751102254536,13.18389607,2421.8,2421.7,0.0635721]
[1751102254830,21.56689607,2421.8,2421.7,0.0635721]
[1751102259529,13.18389607,2421.8,2421.7,0.0635721]
[1751102259732,21.56489607,2421.8,2421.7,0.0635721]
[1751102259933,12.97749607,2421.8,2421.7,0.0635721]
[1751102260324,21.35849607,2421.8,2421.7,0.0635721]
[1751102261014,21.35749607,2421.8,2421.7,0.0635721]
[1751102261536,12.97749607,2421.8,2421.7,0.0635721]
[1751102261704,21.35749607,2421.8,2421.7,0.0635721]
[1751102267340,14.69049607,2421.8,2421.7,0.0635721]
[1751102267643,11.613,2421.9,2421.7,0.8934721]
[1751102267806,11.613,2421.9,2421.7,1.43709438]
[1751102268010,14.09041359,2421.9,2421.7,1.0998721]
[1751102271017,2.47749607,2421.8,2421.7,1.0998721]
[1751102271240,2.47749607,2421.8,2421.7,0.2699721]
[1751102274250,12.47749607,2421.8,2421.7,0.2699721]
[1751102278556,12.47749607,2421.8,2421.7,5.0179721]
[1751102280431,10.0,2421.8,2421.7,5.0179721]
[1751102281649,10.0,2421.8,2421.7,6.35189931]
[1751102282667,10.0,2421.8,2421.7,5.7743721]
[1751102283035,10.8414028,2421.9,2421.7,5.7743721]
[1751102283338,10.0,2421.8,2421.7,5.7743721]
[1751102283749,12.47749607,2421.8,2421.7,5.7743721]
[1751102283938,14.18143704,2421.9,2421.7,5.7743721]
[1751102284442,14.18143704,2421.9,2421.8,4.748]
[1751102288475,14.1785867,2421.9,2421.8,4.748]
[1751102289754,10.7744,2422.5,2421.8,0.57753721]
[1751102290077,12.47725535,2422.1,2421.7,1.0263721]
[1751102290249,6.658,2422.0,2421.7,0.8199721]
[1751102290773,16.658,2422.0,2421.9,0.2064]
[1751102291781,10.0,2422.0,2421.9,0.2064]
[1751102292646,12.47729149,2422.0,2421.9,0.2064]
[1751102297460,14.17629149,2422.0,2421.9,0.2064]
[1751102299202,11.699,2422.0,2421.9,0.2064]
[1751102299346,11.699,2422.0,2420.9,7.215]
[1751102299680,11.699,2422.0,2421.9,0.2064]
[1751102300263,2.4771158,2422.2,2421.9,0.2064]
[1751102300475,8.353,2422.2,2421.9,0.2064]
[1751102300655,8.353,2422.2,2422.1,0.2064]
[1751102302852,1.699,2422.2,2422.1,0.2064]
[1751102303078,11.699,2422.2,2422.1,0.2064]
[1751102304507,2.4773087,2422.0,2421.5,3.27254273]
[1751102304706,2.47723508,2422.1,2421.5,3.27254273]
[1751102304913,12.47723508,2422.1,2421.5,3.27254273]
[1751102305119,12.47723508,2422.1,2421.6,4.748]
[1751102305418,2.47729246,2422.0,2421.6,4.748]
[1751102305593,2.47729246,2422.0,2421.6,5.85513586]
[1751102309114,2.47749266,2421.9,2421.6,4.748]
[1751102309623,2.47749266,2421.9,2421.5,0.5428]
[1751102312977,2.47729718,2422.0,2421.5,5.2928]
[1751102313382,2.47750057,2421.8,2421.5,5.2928]
[1751102313583,2.47750057,2421.8,2421.3,2.77075657]
[1751102313881,2.47750057,2421.8,2421.3,3.29574064]
[1751102314534,2.47750057,2421.8,2421.7,0.2064]
[1751102321588,2.47744308,2421.9,2421.7,0.2064]
[1751102323517,2.47748799,2421.9,2421.7,0.2064]
[1751102326130,2.47749607,2421.8,2421.7,0.2064]
[1751102326673,2.47744125,2421.9,2421.7,0.2064]
[1751102326818,3.35120106,2421.9,2421.7,0.2064]
[1751102332159,2.47744125,2421.9,2421.7,0.2064]
[1751102335181,2.47749607,2421.8,2421.7,0.2064]
[1751102337462,3.25029607,2421.8,2421.7,0.2064]
[1751102340731,0.7728,2421.8,2421.7,0.2064]
[1751102340931,3.25029607,2421.8,2421.7,0.2064]
[1751102342571,2.47744411,2421.9,2421.7,0.2064]
[1751102342732,4.17044411,2421.9,2421.7,0.2064]
[1751102344055,2.47749607,2421.8,2421.7,0.2064]
[1751102347997,1.693,2421.9,2421.7,0.2064]
[1751102347998,4.17044406,2421.9,2421.7,0.2064]
[1751102348639,2.47749607,2421.8,2421.7,0.2064]
[1751102349263,4.17044675,2421.9,2421.7,0.2064]
[1751102349677,2.47749607,2421.8,2421.7,0.2064]
[1751102354389,3.2245084,2421.8,2421.7,0.2064]
[1751102357115,2.47744681,2421.9,2421.7,0.2064]
[1751102359307,4.37172382,2422.0,2421.7,0.2064]
[1751102361016,2.68372382,2422.0,2421.7,0.2064]
[1751102361218,4.16532382,2422.0,2421.7,0.2064]
[1751102362582,2.47741224,2421.9,2421.7,0.2064]
[1751102366925,1.688,2422.0,2421.7,0.2064]
[1751102366926,4.16533491,2422.0,2421.7,0.2064]
[1751102367900,2.4774055,2421.9,2421.7,0.2064]
[1751102369026,4.16534559,2422.0,2421.7,0.2064]
[1751102369619,2.47734559,2422.0,2421.7,0.2064]
[1751102369822,4.16534559,2422.0,2421.7,0.2064]
[1751102371415,2.47734559,2422.0,2421.7,0.2064]
[1751102372233,4.16534559,2422.0,2421.7,0.2064]
[1751102374024,2.47739505,2421.9,2421.7,0.2064]
[1751102375210,2.47732013,2422.0,2421.7,0.78253]
[1751102375418,10.0,2422.1,2421.7,0.78253]
[1751102375419,12.47725298,2422.1,2421.8,0.2064]
[1751102375641,2.47729195,2422.0,2421.8,0.9962]
[1751102376336,12.47724273,2422.1,2421.8,0.9962]
[1751102377101,2.47731416,2422.0,2421.8,0.9962]
[1751102378139,12.47723832,2422.1,2421.8,0.9962]
[1751102378920,2.47731261,2422.0,2421.8,0.9962]
[1751102379116,12.4772233,2422.1,2421.8,0.7898]
[1751102379328,12.4772233,2422.1,2422.0,0.2064]
[1751102379849,10.0,2422.1,2422.0,0.2064]
[1751102380210,10.0,2422.2,2422.0,0.2064]
[1751102381345,4.16494593,2422.4,2422.0,0.2064]
[1751102381651,12.47699289,2422.3,2422.2,0.2064]
[1751102382335,10.0,2422.3,2422.2,0.2064]
[1751102383249,2.4769138,2422.4,2422.2,0.2064]
[1751102383406,0.67811343,2422.7,2422.2,0.57758]
[1751102383606,2.47674109,2422.6,2422.5,0.2056]
[1751102384146,12.47674109,2422.6,2422.5,0.2056]
[1751102384514,4.84274263,2422.7,2422.5,0.2056]
[1751102384710,4.84269398,2422.7,2422.5,0.2056]
[1751102385019,10.0,2422.6,2422.5,0.2056]
[1751102385755,11.688,2422.7,2422.5,0.2056]
[1751102385910,14.16458861,2422.7,2422.5,0.2056]
[1751102386922,10.0,2422.7,2422.5,0.7726]
[1751102387129,10.0,2422.7,2422.6,0.2056]
[1751102387822,10.0,2422.7,2422.6,0.55110219]
[1751102396654,1.44155103,2422.8,2422.6,0.55110219]
[1751102399145,1.44155103,2422.8,2422.6,0.2056]
[1751102399767,1.44155103,2422.8,2422.6,4.9556]
[1751102402174,3.91805494,2422.8,2422.6,4.9556]
[1751102405668,3.91805494,2422.8,2422.7,4.75]
[1751102407139,1.44155103,2422.8,2422.7,4.75]
[1751102407345,1.44155103,2422.8,2422.7,7.72213572]
[1751102407544,1.44155103,2422.8,2422.7,5.24556]
[1751102408155,1.44155103,2422.8,2422.7,7.72213572]
[1751102408575,1.44155103,2422.8,2422.7,5.24556]
[1751102409951,1.44155103,2422.8,2422.7,7.72213572]
[1751102410452,1.44155103,2422.8,2422.7,8.47773572]
[1751102410653,1.44155103,2422.8,2422.7,5.24556]
[1751102410977,3.91802453,2422.8,2422.7,4.75]
[1751102411383,4.69342453,2422.8,2422.7,4.75]
[1751102414384,2.21695103,2422.8,2422.7,4.75]
[1751102414700,2.21695103,2422.8,2422.3,9.86657104]
[1751102414701,2.21695103,2422.8,2422.4,4.75]
[1751102415051,4.69343267,2422.8,2422.4,4.75]
[1751102415457,4.69343267,2422.8,2422.4,6.51712186]
[1751102415790,4.69343267,2422.8,2422.4,4.75]
[1751102416178,1.44155103,2422.8,2422.5,0.7526]
[1751102416354,0.7538,2422.7,2422.2,0.57758]
[1751102416557,2.47689162,2422.4,2421.9,2.47738089]
[1751102417858,2.47685413,2422.5,2421.9,2.47735895]
[1751102419792,2.47685413,2422.5,2421.9,2.47739378]
[1751102420702,2.47685413,2422.5,2421.8,15.57411656]
[1751102420703,2.47685413,2422.5,2422.4,0.2064]
[1751102421496,2.47669183,2422.6,2422.4,0.2064]
[1751102421701,2.47667794,2422.6,2422.4,0.2064]
[1751102423130,2.47678018,2422.5,2422.4,0.2064]
[1751102423276,2.47672446,2422.6,2422.4,0.2064]
[1751102424898,0.7538,2422.7,2422.4,0.2064]
[1751102424899,3.23045078,2422.7,2422.4,0.2064]
[1751102425290,2.47671358,2422.6,2422.4,0.2064]
[1751102429621,2.47678018,2422.5,2422.4,0.2064]
[1751102430318,2.4767295,2422.6,2422.4,0.2064]
[1751102430707,2.47671092,2422.6,2422.4,0.2064]
[1751102437798,2.47678018,2422.5,2422.4,0.2064]
[1751102438301,2.47678018,2422.5,2422.4,4.9564]
[1751102439321,2.47672977,2422.6,2422.4,4.9564]
[1751102444138,2.47672977,2422.6,2422.4,0.2064]
[1751102445744,3.23042767,2422.7,2422.4,0.2064]
[1751102447922,2.47668965,2422.6,2422.4,0.2064]
[1751102455950,2.47668965,2422.6,2422.4,4.9564]
[1751102461881,2.47668965,2422.6,2422.4,0.2064]
[1751102462759,3.23043071,2422.7,2422.4,0.2064]
[1751102464084,2.47668667,2422.6,2422.4,0.2064]
[1751102468486,2.47678018,2422.5,2422.4,0.2064]
[1751102469067,3.23848018,2422.5,2422.4,0.2064]
[1751102469395,2.47688243,2422.4,2422.3,4.75]
[1751102469604,4.16488243,2422.4,2422.3,4.75]
[1751102469978,2.47698468,2422.3,2422.2,0.2064]
[1751102485607,2.47698468,2422.3,2422.2,4.9564]
[1751102485810,20.80090678,2422.4,2422.2,4.9564]
[1751102486208,2.47698468,2422.3,2422.2,4.9564]
[1751102491448,2.47698468,2422.3,2422.2,0.2064]
[1751102492815,4.16498468,2422.3,2422.2,0.2064]
[1751102503370,4.16498468,2422.3,2422.2,4.9564]
[1751102505473,2.47698468,2422.3,2422.2,4.9564]
[1751102505678,4.16498468,2422.3,2422.2,4.9564]
[1751102509168,4.16498468,2422.3,2422.2,0.2064]
[1751102513489,2.47698468,2422.3,2422.2,0.2064]
[1751102513691,4.16398468,2422.3,2422.2,0.2064]
[1751102521093,4.16398468,2422.3,2422.2,4.9564]
[1751102521394,2.47698468,2422.3,2422.2,4.9564]
[1751102521593,4.16398468,2422.3,2422.2,4.9564]
[1751102522597,12.47692881,2422.4,2422.2,4.9564]
[1751102522765,1.687,2422.3,2422.2,4.9564]
[1751102523461,4.16398468,2422.3,2422.2,4.9564]
[1751102524191,12.47693435,2422.4,2422.2,0.2064]
[1751102524389,14.16393435,2422.4,2422.2,0.2064]
[1751102526814,11.687,2422.4,2422.0,6.52872341]
[1751102526976,11.687,2422.4,2422.3,0.2064]
[1751102532900,11.687,2422.4,2422.3,4.9564]
[1751102541427,0.9916,2422.7,2422.3,4.9564]
[1751102541630,11.687,2422.6,2422.3,4.9564]
[1751102541800,14.16372748,2422.6,2422.3,4.9564]
[1751102543033,12.47679073,2422.5,2422.3,4.9564]
[1751102544033,2.47679073,2422.5,2422.3,4.9564]
[1751102544701,4.16379073,2422.5,2422.4,4.75]
[1751102550053,1.687,2422.5,2422.4,4.75]
[1751102552417,12.47669178,2422.6,2422.4,4.75]
[1751102552626,1.687,2422.5,2422.4,4.75]
[1751102553044,12.47669178,2422.6,2422.4,4.75]
[1751102553214,1.687,2422.5,2422.4,4.75]
[1751102553544,12.47669178,2422.6,2422.4,4.75]
[1751102553853,1.687,2422.5,2422.4,4.75]
[1751102557128,10.9916,2422.7,2422.4,4.75]
[1751102557333,1.687,2422.6,2422.4,4.75]
[1751102558317,11.687,2422.6,2422.4,4.75]
[1751102560456,10.0,2422.6,2422.4,4.75]
[1751102560659,11.687,2422.6,2422.4,4.75]
[1751102562352,1.687,2422.6,2422.5,4.75]
[1751102562562,11.687,2422.6,2422.5,4.75]
[1751102563678,1.687,2422.6,2422.5,4.75]
[1751102564466,4.16367794,2422.6,2422.5,4.75]
[1751102564860,14.16367794,2422.6,2422.5,4.75]
[1751102567878,1.687,2422.6,2422.5,4.75]
[1751102568044,11.687,2422.6,2422.5,4.75]
[1751102568239,1.687,2422.6,2422.4,4.75]
[1751102568464,10.0,2422.6,2422.4,4.75]
[1751102568785,11.687,2422.6,2422.4,4.75]
[1751102573579,11.44155103,2422.8,2422.7,0.2056]
[1751102574281,11.44155103,2422.8,2422.7,4.9556]
[1751102585904,11.44155103,2422.8,2422.7,9.06233813]
[1751102585905,1.44155103,2422.8,2422.7,9.06233813]
[1751102589385,0.002,2423.3,2422.9,0.8265]
[1751102589726,0.002,2423.3,2423.0,12.95183382]
[1751102590093,0.002,2423.3,2423.2,0.2056]
[1751102590415,0.002,2423.3,2423.2,4.9556]
[1751102590579,0.002,2423.3,2423.2,6.27133471]
[1751102592419,0.002,2423.3,2423.2,14.47302282]
[1751102592913,0.002,2423.3,2423.2,15.29952282]
[1751102593111,0.002,2423.3,2423.2,21.93852282]
[1751102598131,0.002,2423.5,2423.4,7.77186036]
[1751102598301,0.002,2423.5,2423.4,22.34913681]
[1751102600022,0.002,2423.5,2423.4,28.07476022]
[1751102602042,0.002,2423.5,2423.4,22.34913681]
[1751102602636,0.002,2423.5,2423.4,28.07476022]
[1751102606760,0.002,2423.6,2423.4,28.07476022]
[1751102606761,0.002,2424.1,2423.9,2.47534964]
[1751102606948,0.002,2424.1,2423.9,14.67737388]
[1751102607149,0.002,2424.1,2423.9,14.88297388]
[1751102609349,0.002,2424.1,2423.9,15.43297388]
[1751102612767,0.002,2424.2,2424.1,4.734]
[1751102612938,0.002,2424.2,2424.1,11.371]
[1751102613138,0.002,2424.2,2424.1,12.40306241]
[1751102622751,0.002,2424.2,2424.1,11.5766]
[1751102623160,0.7756,2424.2,2424.1,11.5736]
[1751102626786,3.25064331,2424.2,2424.1,11.5736]
[1751102627581,0.7756,2424.2,2424.1,11.5736]
[1751102632963,3.25064331,2424.2,2424.1,11.5736]
[1751102633899,0.7756,2424.2,2424.1,11.5736]
[1751102635399,0.002,2424.2,2424.1,11.5736]
[1751102646080,0.002,2424.2,2424.1,14.40035435]
[1751102647282,0.002,2424.2,2424.1,13.63345435]
[1751102648519,0.002,2424.2,2424.1,4.9396]
[1751102648730,0.002,2424.2,2424.1,11.5676]
[1751102651713,0.002,2424.2,2424.1,12.3943]
[1751102653218,0.002,2424.2,2424.1,14.86944541]
[1751102657931,0.002,2424.2,2424.1,17.10644541]
[1751102658108,0.002,2424.2,2424.1,19.71957245]
[1751102663030,0.002,2424.5,2424.3,7.20685691]
[1751102663206,0.002,2424.5,2424.4,11.362]
[1751102663406,0.002,2424.5,2424.4,11.5676]
[1751102667648,0.002,2424.5,2424.4,14.04243913]
[1751102667950,0.002,2424.5,2424.4,14.78916225]
[1751102668544,0.002,2424.5,2424.4,20.51478566]
[1751102674719,13.26481247,2425.0,2424.5,7.2046962]
[1751102674921,13.26481247,2425.0,2424.6,11.357]
[1751102675236,13.26481247,2425.0,2424.9,0.2056]
[1751102675437,13.26481247,2425.0,2424.9,6.8326]
[1751102677451,13.26481247,2425.0,2424.9,0.2056]
[1751102680871,13.26481247,2425.0,2424.9,4.9356]
[1751102684069,13.6708131,2425.0,2424.9,4.73]
[1751102689184,13.8764131,2425.0,2424.9,4.73]
[1751102690385,14.5764131,2425.0,2424.9,4.73]
[1751102692486,2.47443088,2424.8,2424.7,4.73]
[1751102692784,3.24833088,2424.8,2424.7,4.73]
[1751102693182,4.77195211,2424.8,2424.7,4.73]
[1751102700207,14.77195211,2424.8,2424.7,4.73]
[1751102704298,2.47463499,2424.6,2424.5,4.73]
[1751102704500,3.25553499,2424.6,2424.5,4.73]
[1751102710309,2.47473705,2424.5,2424.4,4.73]
[1751102731147,2.68017235,2424.7,2424.4,4.73]
[1751102731347,2.47472616,2424.6,2424.4,5.30257]
[1751102731571,2.47472616,2424.6,2424.5,0.2056]
[1751102733850,2.47472616,2424.6,2424.5,4.9356]
[1751102737061,10.0,2424.8,2424.5,5.728]
[1751102737261,10.0,2424.8,2424.6,0.7924]
[1751102737466,10.0,2424.8,2424.7,0.2056]
[1751102739881,10.0,2424.8,2424.7,4.9356]
[1751102742479,1.687,2425.0,2424.7,4.9356]
[1751102742679,14.16128118,2425.0,2424.8,4.73]
[1751102742977,14.16128118,2425.0,2424.9,0.2056]
[1751102743476,0.002,2425.0,2424.9,0.2056]
[1751102743676,0.002,2425.0,2424.9,0.78115]
[1751102745649,0.002,2425.0,2424.9,5.51115]
[1751102749288,2.4762268,2425.0,2424.9,5.51115]
[1751102752559,2.4762268,2425.0,2424.9,4.9356]
[1751102754802,12.4762268,2425.0,2424.9,4.9356]
[1751102758382,2.4762268,2425.0,2424.9,4.9356]
[1751102760414,0.002,2425.0,2424.9,4.9356]
[1751102770296,0.002,2425.0,2424.9,10.66122341]
[1751102770502,0.002,2425.0,2424.9,12.47183575]
[1751102771703,0.002,2425.0,2424.9,13.22533575]
[1751102773133,0.002,2425.0,2424.9,19.84933575]
[1751102778633,0.002,2425.0,2424.9,14.12371234]
[1751102780952,0.002,2425.0,2424.9,12.3131]
[1751102783506,0.002,2425.0,2424.9,11.5596]